[Event "Titled Tuesday Blitz July 20 2021"]
[White "Taichman, Ori"]
[Black "Timmermans, Mark"]
[WhiteFideId "2804069"]
[BlackFideId "1026399"]
[WhiteElo "2227"]
[BlackElo "2460"]
[Result "1-0"]
[Round "10"]
[TimeControl "180+1"]
[Date "2021.07.20"]
[WhiteClock "0:00:15"]
[BlackClock "0:00:26"]

1. e4 {[%clk 0:03:00]}  e5 {[%clk 0:02:54]} 2. d4 {[%clk 0:03:00]}  exd4 {[%clk 0:02:54]} 3. Qxd4 {[%clk 0:03:01]}  Nc6 {[%clk 0:02:52]} 4. Qe3 {[%clk 0:03:01]}  Nf6 {[%clk 0:02:53]} 5. Nc3 {[%clk 0:03:01]}  Bb4 {[%clk 0:02:52]} 6. Bd2 {[%clk 0:02:58]}  O-O {[%clk 0:02:53]} 7. O-O-O {[%clk 0:02:58]}  Re8 {[%clk 0:02:53]} 8. Qg3 {[%clk 0:02:57]}  Rxe4 {[%clk 0:02:54]} 9. a3 {[%clk 0:02:53]}  Bd6 {[%clk 0:02:48]} 10. f4 {[%clk 0:02:53]}  Rxf4 {[%clk 0:02:28]} 11. Bxf4 {[%clk 0:02:23]}  Nh5 {[%clk 0:02:27]} 12. Qf3 {[%clk 0:02:11]}  Bxf4+ {[%clk 0:02:25]} 13. Kb1 {[%clk 0:02:11]}  g6 {[%clk 0:02:25]} 14. g4 {[%clk 0:02:03]}  Ne5 {[%clk 0:02:25]} 15. Qe2 {[%clk 0:02:03]}  d5 {[%clk 0:02:10]} 16. Rxd5 {[%clk 0:01:46]}  Qf6 {[%clk 0:02:08]} 17. gxh5 {[%clk 0:01:38]}  Bg4 {[%clk 0:02:07]} 18. Qf2 {[%clk 0:01:24]}  Re8 {[%clk 0:01:57]} 19. Be2 {[%clk 0:01:05]}  Bf5 {[%clk 0:01:53]} 20. hxg6 {[%clk 0:00:59]}  fxg6 {[%clk 0:01:54]} 21. Nf3 {[%clk 0:00:58]}  Ng4 {[%clk 0:01:46]} 22. Qd4 {[%clk 0:00:54]}  c6 {[%clk 0:01:39]} 23. Qxf6 {[%clk 0:00:52]}  Nxf6 {[%clk 0:01:40]} 24. Rdd1 {[%clk 0:00:49]}  Ng4 {[%clk 0:01:35]} 25. Bc4+ {[%clk 0:00:46]}  Kf8 {[%clk 0:01:32]} 26. Rde1 {[%clk 0:00:43]}  Ne3 {[%clk 0:01:29]} 27. Bd3 {[%clk 0:00:42]}  Bg4 {[%clk 0:01:29]} 28. Nd4 {[%clk 0:00:39]}  Kg7 {[%clk 0:01:25]} 29. h3 {[%clk 0:00:37]}  Bc8 {[%clk 0:01:19]} 30. Nd1 {[%clk 0:00:35]}  Rd8 {[%clk 0:01:12]} 31. Nxe3 {[%clk 0:00:34]}  Rxd4 {[%clk 0:01:12]} 32. h4 {[%clk 0:00:29]}  Bg3 {[%clk 0:01:10]} 33. Ref1 {[%clk 0:00:24]}  Bxh4 {[%clk 0:01:09]} 34. Nc4 {[%clk 0:00:20]}  Be6 {[%clk 0:01:07]} 35. Ne5 {[%clk 0:00:20]}  Bg3 {[%clk 0:01:05]} 36. Nf3 {[%clk 0:00:20]}  Rg4 {[%clk 0:00:59]} 37. Nd2 {[%clk 0:00:19]}  h5 {[%clk 0:00:56]} 38. Ne4 {[%clk 0:00:19]}  Bb8 {[%clk 0:00:55]} 39. Rhg1 {[%clk 0:00:19]}  Rxg1 {[%clk 0:00:41]} 40. Rxg1 {[%clk 0:00:20]}  h4 {[%clk 0:00:41]} 41. Ng5 {[%clk 0:00:20]}  Bc8 {[%clk 0:00:40]} 42. Bf1 {[%clk 0:00:21]}  Bf5 {[%clk 0:00:36]} 43. Bh3 {[%clk 0:00:21]}  Bxh3 {[%clk 0:00:34]} 44. Nxh3 {[%clk 0:00:22]}  Bg3 {[%clk 0:00:35]} 45. Kc1 {[%clk 0:00:19]}  Kh6 {[%clk 0:00:34]} 46. Kd2 {[%clk 0:00:18]}  Kh5 {[%clk 0:00:35]} 47. Rh1 {[%clk 0:00:17]}  Kg4 {[%clk 0:00:35]} 48. Ke3 {[%clk 0:00:18]}  Bc7 {[%clk 0:00:32]} 49. Nf2+ {[%clk 0:00:18]}  Kh5 {[%clk 0:00:30]} 50. Kf3 {[%clk 0:00:19]}  g5 {[%clk 0:00:30]} 51. Ng4 {[%clk 0:00:19]}  Bf4 {[%clk 0:00:29]} 52. Rh3 {[%clk 0:00:18]}  Bc1 {[%clk 0:00:29]} 53. b3 {[%clk 0:00:18]}  Bxa3 {[%clk 0:00:29]} 54. Nf6+ {[%clk 0:00:17]}  Kg6 {[%clk 0:00:29]} 55. Ng4 {[%clk 0:00:16]}  Kh5 {[%clk 0:00:29]} 56. Rh2 {[%clk 0:00:15]}  Bd6 {[%clk 0:00:28]} 57. Re2 {[%clk 0:00:15]}  Bf4 {[%clk 0:00:26]} 58. Re6 {[%clk 0:00:15]} 1-0


[Site "https://www.chess.com"]

[Event "Titled Tuesday Blitz July 20 2021"]
[White "Tomaszewski, Kacper"]
[Black "Janaszak, Dawid"]
[WhiteFideId "1127373"]
[BlackFideId "1119206"]
[WhiteElo "2162"]
[BlackElo "2332"]
[Result "1-0"]
[Round "10"]
[TimeControl "180+1"]
[Date "2021.07.21"]
[WhiteClock "0:00:13"]
[BlackClock "0:00:07"]

1. d4 {[%clk 0:03:00]}  Nf6 {[%clk 0:02:59]} 2. c4 {[%clk 0:03:01]}  g6 {[%clk 0:02:57]} 3. Nc3 {[%clk 0:03:02]}  Bg7 {[%clk 0:02:57]} 4. e4 {[%clk 0:03:03]}  O-O {[%clk 0:02:57]} 5. Be2 {[%clk 0:03:03]}  c5 {[%clk 0:02:55]} 6. d5 {[%clk 0:02:54]}  d6 {[%clk 0:02:55]} 7. Be3 {[%clk 0:02:54]}  h5 {[%clk 0:02:51]} 8. h3 {[%clk 0:02:52]}  e6 {[%clk 0:02:49]} 9. Nf3 {[%clk 0:02:51]}  exd5 {[%clk 0:02:47]} 10. cxd5 {[%clk 0:02:52]}  Re8 {[%clk 0:02:46]} 11. Nd2 {[%clk 0:02:52]}  Na6 {[%clk 0:02:41]} 12. O-O {[%clk 0:02:47]}  Nc7 {[%clk 0:02:41]} 13. a4 {[%clk 0:02:47]}  b6 {[%clk 0:02:28]} 14. f4 {[%clk 0:02:46]}  Nfxd5 {[%clk 0:02:22]} 15. exd5 {[%clk 0:02:28]}  Rxe3 {[%clk 0:02:21]} 16. Nc4 {[%clk 0:02:21]}  Re7 {[%clk 0:02:13]} 17. f5 {[%clk 0:02:21]}  Bxf5 {[%clk 0:02:08]} 18. Rxf5 {[%clk 0:02:21]}  gxf5 {[%clk 0:02:08]} 19. Bxh5 {[%clk 0:02:22]}  Qd7 {[%clk 0:01:50]} 20. Qf3 {[%clk 0:02:18]}  Rae8 {[%clk 0:01:47]} 21. Kh2 {[%clk 0:02:16]}  Be5+ {[%clk 0:01:24]} 22. Nxe5 {[%clk 0:02:15]}  Rxe5 {[%clk 0:01:24]} 23. Qg3+ {[%clk 0:02:10]}  Kf8 {[%clk 0:01:22]} 24. Qg5 {[%clk 0:02:05]}  Qe7 {[%clk 0:01:13]} 25. Qh6+ {[%clk 0:02:03]}  Kg8 {[%clk 0:01:12]} 26. Rf1 {[%clk 0:02:01]}  Qf8 {[%clk 0:01:12]} 27. Qf6 {[%clk 0:01:56]}  Qe7 {[%clk 0:00:53]} 28. Qh6 {[%clk 0:01:55]}  Nxd5 {[%clk 0:00:51]} 29. Nxd5 {[%clk 0:01:39]}  Rxd5 {[%clk 0:00:51]} 30. Rf3 {[%clk 0:01:39]}  f4 {[%clk 0:00:49]} 31. Rxf4 {[%clk 0:01:36]}  f5 {[%clk 0:00:12]} 32. Qg6+ {[%clk 0:01:20]}  Kf8 {[%clk 0:00:11]} 33. Qh6+ {[%clk 0:01:20]}  Kg8 {[%clk 0:00:11]} 34. Qg6+ {[%clk 0:00:27]}  Kf8 {[%clk 0:00:11]} 35. Rxf5+ {[%clk 0:00:26]}  Rxf5 {[%clk 0:00:11]} 36. Qxf5+ {[%clk 0:00:27]}  Kg7 {[%clk 0:00:11]} 37. Qg6+ {[%clk 0:00:27]}  Kf8 {[%clk 0:00:11]} 38. Qh6+ {[%clk 0:00:26]}  Kg8 {[%clk 0:00:10]} 39. Bxe8 {[%clk 0:00:21]}  Qxe8 {[%clk 0:00:11]} 40. Qxd6 {[%clk 0:00:22]}  Qxa4 {[%clk 0:00:10]} 41. Qg6+ {[%clk 0:00:19]}  Kf8 {[%clk 0:00:10]} 42. Qf6+ {[%clk 0:00:20]}  Ke8 {[%clk 0:00:10]} 43. h4 {[%clk 0:00:20]}  Qd4 {[%clk 0:00:08]} 44. Qxd4 {[%clk 0:00:12]}  cxd4 {[%clk 0:00:09]} 45. Kg3 {[%clk 0:00:12]}  a5 {[%clk 0:00:07]} 46. Kf4 {[%clk 0:00:12]}  b5 {[%clk 0:00:07]} 47. Ke4 {[%clk 0:00:13]}  a4 {[%clk 0:00:08]} 48. Kxd4 {[%clk 0:00:13]}  b4 {[%clk 0:00:08]} 49. Kc4 {[%clk 0:00:13]}  a3 {[%clk 0:00:07]} 50. bxa3 {[%clk 0:00:13]} 1-0


[Site "https://www.chess.com"]

[Event "Titled Tuesday Blitz July 20 2021"]
[White "Vdovin, Vadim"]
[Black "Buchenau, Frank"]
[WhiteFideId "24107158"]
[BlackFideId "4604350"]
[WhiteElo "2406"]
[BlackElo "2255"]
[Result "1-0"]
[Round "10"]
[TimeControl "180+1"]
[Date "2021.07.20"]
[WhiteClock "0:00:08"]
[BlackClock "0:00:20"]

1. e4 {[%clk 0:03:00]}  e6 {[%clk 0:02:58]} 2. d4 {[%clk 0:03:00]}  d5 {[%clk 0:02:59]} 3. Nc3 {[%clk 0:03:01]}  Nf6 {[%clk 0:02:59]} 4. e5 {[%clk 0:03:01]}  Nfd7 {[%clk 0:02:59]} 5. Nce2 {[%clk 0:03:02]}  c5 {[%clk 0:03:00]} 6. c3 {[%clk 0:03:03]}  Nc6 {[%clk 0:03:00]} 7. Nf3 {[%clk 0:03:03]}  Be7 {[%clk 0:03:00]} 8. a3 {[%clk 0:02:59]}  b5 {[%clk 0:02:58]} 9. Nf4 {[%clk 0:02:51]}  cxd4 {[%clk 0:02:57]} 10. cxd4 {[%clk 0:02:50]}  Qa5+ {[%clk 0:02:55]} 11. Bd2 {[%clk 0:02:44]}  Qb6 {[%clk 0:02:55]} 12. Be3 {[%clk 0:02:37]}  b4 {[%clk 0:02:49]} 13. Bd3 {[%clk 0:02:29]}  Ba6 {[%clk 0:02:43]} 14. O-O {[%clk 0:02:24]}  Bxd3 {[%clk 0:02:39]} 15. Qxd3 {[%clk 0:02:25]}  O-O {[%clk 0:02:36]} 16. h4 {[%clk 0:02:20]}  Rfb8 {[%clk 0:02:27]} 17. Ng5 {[%clk 0:02:15]}  Nf8 {[%clk 0:02:25]} 18. Rfc1 {[%clk 0:02:02]}  Na5 {[%clk 0:02:10]} 19. a4 {[%clk 0:01:03]}  b3 {[%clk 0:02:03]} 20. Bd2 {[%clk 0:01:01]}  Nc4 {[%clk 0:02:02]} 21. Bc3 {[%clk 0:01:01]}  Rc8 {[%clk 0:01:58]} 22. Nh5 {[%clk 0:00:59]}  Bxg5 {[%clk 0:01:54]} 23. hxg5 {[%clk 0:00:59]}  Ng6 {[%clk 0:01:48]} 24. g3 {[%clk 0:00:59]}  Rc6 {[%clk 0:01:45]} 25. Kg2 {[%clk 0:00:58]}  Qb7 {[%clk 0:01:38]} 26. Rh1 {[%clk 0:00:56]}  Ra6 {[%clk 0:01:37]} 27. Rh2 {[%clk 0:00:47]}  Ncxe5 {[%clk 0:01:34]} 28. Qe2 {[%clk 0:00:29]}  Nd7 {[%clk 0:01:26]} 29. Rah1 {[%clk 0:00:28]}  e5 {[%clk 0:01:25]} 30. Nxg7 {[%clk 0:00:17]}  Kxg7 {[%clk 0:01:21]} 31. Rxh7+ {[%clk 0:00:18]}  Kg8 {[%clk 0:01:13]} 32. Qh5 {[%clk 0:00:15]}  Kf8 {[%clk 0:01:03]} 33. Qh6+ {[%clk 0:00:08]}  Ke7 {[%clk 0:01:00]} 34. Qg7 {[%clk 0:00:09]}  Rf8 {[%clk 0:00:54]} 35. R1h6 {[%clk 0:00:09]}  Ke8 {[%clk 0:00:50]} 36. Kg1 {[%clk 0:00:07]}  Rxa4 {[%clk 0:00:48]} 37. Rxg6 {[%clk 0:00:07]}  Ra1+ {[%clk 0:00:39]} 38. Kh2 {[%clk 0:00:07]}  Qb5 {[%clk 0:00:28]} 39. Re6+ {[%clk 0:00:06]}  Kd8 {[%clk 0:00:27]} 40. Rd6 {[%clk 0:00:07]}  Qf1 {[%clk 0:00:24]} 41. Qxf8+ {[%clk 0:00:07]}  Kc7 {[%clk 0:00:24]} 42. Rxd7+ {[%clk 0:00:08]}  Kxd7 {[%clk 0:00:21]} 43. Rxf7+ {[%clk 0:00:08]}  Kc6 {[%clk 0:00:20]} 44. Qc5# {[%clk 0:00:08]} 1-0


[Site "https://www.chess.com"]

[Event "Titled Tuesday Blitz July 20 2021"]
[White "Vivas Zamora, Fabian Ernesto"]
[Black "Wagner, Dinara"]
[WhiteFideId "3902480"]
[BlackFideId "24157570"]
[WhiteElo "1966"]
[BlackElo "2260"]
[Result "0-1"]
[Round "10"]
[TimeControl "180+1"]
[Date "2021.07.21"]
[WhiteClock "0:00:12"]
[BlackClock "0:00:25"]

1. c4 {[%clk 0:03:00]}  c5 {[%clk 0:02:58]} 2. Nf3 {[%clk 0:02:56]}  Nc6 {[%clk 0:02:58]} 3. d4 {[%clk 0:02:55]}  cxd4 {[%clk 0:02:58]} 4. Nxd4 {[%clk 0:02:56]}  Nf6 {[%clk 0:02:58]} 5. Nc3 {[%clk 0:02:51]}  g6 {[%clk 0:02:58]} 6. Nc2 {[%clk 0:02:51]}  Bg7 {[%clk 0:02:59]} 7. e4 {[%clk 0:02:52]}  d6 {[%clk 0:02:58]} 8. Be2 {[%clk 0:02:52]}  O-O {[%clk 0:02:59]} 9. O-O {[%clk 0:02:53]}  Be6 {[%clk 0:02:59]} 10. Be3 {[%clk 0:02:44]}  Rc8 {[%clk 0:02:59]} 11. Qd2 {[%clk 0:02:40]}  Ng4 {[%clk 0:02:45]} 12. Bxg4 {[%clk 0:02:30]}  Bxg4 {[%clk 0:02:45]} 13. Bh6 {[%clk 0:02:28]}  Ne5 {[%clk 0:02:33]} 14. Bxg7 {[%clk 0:02:24]}  Kxg7 {[%clk 0:02:34]} 15. Ne3 {[%clk 0:02:14]}  Nxc4 {[%clk 0:02:20]} 16. Qd4+ {[%clk 0:02:06]}  e5 {[%clk 0:02:20]} 17. Qxa7 {[%clk 0:02:04]}  Nxe3 {[%clk 0:02:12]} 18. Qxe3 {[%clk 0:02:01]}  Be6 {[%clk 0:02:12]} 19. Rad1 {[%clk 0:01:56]}  Qe7 {[%clk 0:02:00]} 20. Nd5 {[%clk 0:01:38]}  Bxd5 {[%clk 0:01:53]} 21. Rxd5 {[%clk 0:01:39]}  Rc2 {[%clk 0:01:53]} 22. Qb3 {[%clk 0:01:27]}  Rfc8 {[%clk 0:01:48]} 23. g3 {[%clk 0:01:23]}  Qf6 {[%clk 0:01:29]} 24. Qxb7 {[%clk 0:00:55]}  Qf3 {[%clk 0:01:29]} 25. Rdd1 {[%clk 0:00:53]}  R8c4 {[%clk 0:01:17]} 26. Qd5 {[%clk 0:00:35]}  h5 {[%clk 0:00:57]} 27. Qxd6 {[%clk 0:00:22]}  Rxe4 {[%clk 0:00:55]} 28. Rd3 {[%clk 0:00:17]}  Qf5 {[%clk 0:00:47]} 29. Rb3 {[%clk 0:00:12]}  Re1 {[%clk 0:00:25]} 0-1


[Site "https://www.chess.com"]

[Event "Titled Tuesday Blitz July 20 2021"]
[White "Vukovic, Zdravko"]
[Black "Turgut, Aydin"]
[WhiteFideId "900877"]
[BlackFideId "2078791"]
[WhiteElo "2593"]
[BlackElo "2138"]
[Result "1-0"]
[Round "10"]
[TimeControl "180+1"]
[Date "2021.07.20"]
[WhiteClock "0:00:22"]
[BlackClock "0:00:09"]

1. e4 {[%clk 0:02:51]}  e5 {[%clk 0:03:00]} 2. d4 {[%clk 0:02:51]}  exd4 {[%clk 0:03:00]} 3. Nf3 {[%clk 0:02:49]}  Nc6 {[%clk 0:03:00]} 4. Nxd4 {[%clk 0:02:48]}  Nf6 {[%clk 0:03:01]} 5. Nxc6 {[%clk 0:02:48]}  bxc6 {[%clk 0:03:02]} 6. e5 {[%clk 0:02:48]}  Qe7 {[%clk 0:03:01]} 7. Qe2 {[%clk 0:02:48]}  Nd5 {[%clk 0:03:02]} 8. Nd2 {[%clk 0:02:48]}  g6 {[%clk 0:03:01]} 9. Ne4 {[%clk 0:02:48]}  Bg7 {[%clk 0:02:39]} 10. Bg5 {[%clk 0:02:47]}  Qxe5 {[%clk 0:02:31]} 11. f4 {[%clk 0:02:39]}  Qe6 {[%clk 0:02:24]} 12. c4 {[%clk 0:02:35]}  Ne7 {[%clk 0:02:16]} 13. O-O-O {[%clk 0:02:33]}  O-O {[%clk 0:02:09]} 14. g4 {[%clk 0:02:27]}  d6 {[%clk 0:01:50]} 15. Re1 {[%clk 0:02:00]}  Re8 {[%clk 0:01:36]} 16. Qd2 {[%clk 0:01:55]}  Qxg4 {[%clk 0:01:13]} 17. h4 {[%clk 0:01:47]}  Be6 {[%clk 0:00:53]} 18. Bh3 {[%clk 0:01:37]}  Qf3 {[%clk 0:00:52]} 19. Bxe6 {[%clk 0:01:32]}  fxe6 {[%clk 0:00:52]} 20. h5 {[%clk 0:01:32]}  Nf5 {[%clk 0:00:49]} 21. hxg6 {[%clk 0:01:28]}  hxg6 {[%clk 0:00:50]} 22. Bf6 {[%clk 0:01:27]}  e5 {[%clk 0:00:44]} 23. Bxg7 {[%clk 0:01:17]}  Kxg7 {[%clk 0:00:44]} 24. Rh7+ {[%clk 0:01:17]}  Kf8 {[%clk 0:00:32]} 25. Ng5 {[%clk 0:01:03]}  Qg3 {[%clk 0:00:13]} 26. Rh3 {[%clk 0:00:37]}  Qxf4 {[%clk 0:00:08]} 27. Qxf4 {[%clk 0:00:35]}  exf4 {[%clk 0:00:09]} 28. Rh8+ {[%clk 0:00:35]}  Kg7 {[%clk 0:00:08]} 29. Rexe8 {[%clk 0:00:35]}  Rxe8 {[%clk 0:00:07]} 30. Rxe8 {[%clk 0:00:36]}  Kf6 {[%clk 0:00:07]} 31. Ne4+ {[%clk 0:00:32]}  Kf7 {[%clk 0:00:06]} 32. Rc8 {[%clk 0:00:32]}  Ke6 {[%clk 0:00:06]} 33. Rxc7 {[%clk 0:00:31]}  Nd4 {[%clk 0:00:04]} 34. Rxa7 {[%clk 0:00:28]}  d5 {[%clk 0:00:03]} 35. cxd5+ {[%clk 0:00:28]}  Kxd5 {[%clk 0:00:03]} 36. Ng5 {[%clk 0:00:26]}  Ke5 {[%clk 0:00:02]} 37. a4 {[%clk 0:00:23]}  Kf5 {[%clk 0:00:03]} 38. Nh3 {[%clk 0:00:21]}  Kg4 {[%clk 0:00:03]} 39. Nxf4 {[%clk 0:00:21]}  Kxf4 {[%clk 0:00:04]} 40. a5 {[%clk 0:00:21]}  g5 {[%clk 0:00:05]} 41. a6 {[%clk 0:00:21]}  g4 {[%clk 0:00:05]} 42. Rg7 {[%clk 0:00:21]}  Nb5 {[%clk 0:00:04]} 43. a7 {[%clk 0:00:21]}  Nxa7 {[%clk 0:00:05]} 44. Rxa7 {[%clk 0:00:21]}  g3 {[%clk 0:00:05]} 45. Rg7 {[%clk 0:00:21]}  Kf3 {[%clk 0:00:06]} 46. Kc2 {[%clk 0:00:21]}  Kf2 {[%clk 0:00:07]} 47. Kc3 {[%clk 0:00:22]}  g2 {[%clk 0:00:08]} 48. Kc4 {[%clk 0:00:22]}  Kf1 {[%clk 0:00:06]} 49. Kc5 {[%clk 0:00:22]}  Kg1 {[%clk 0:00:07]} 50. Kxc6 {[%clk 0:00:22]}  Kh1 {[%clk 0:00:08]} 51. Rxg2 {[%clk 0:00:21]}  Kxg2 {[%clk 0:00:08]} 52. b4 {[%clk 0:00:22]}  Kf3 {[%clk 0:00:09]} 1-0


[Site "https://www.chess.com"]

[Event "Titled Tuesday Blitz July 20 2021"]
[White "Wagner, Dennis"]
[Black "Trent, Lawrence"]
[WhiteFideId "24650684"]
[BlackFideId "408638"]
[WhiteElo "2355"]
[BlackElo "2474"]
[Result "0-1"]
[Round "10"]
[TimeControl "180+1"]
[Date "2021.07.20"]
[WhiteClock "0:00:06"]
[BlackClock "0:00:12"]

1. c4 {[%clk 0:03:00]}  b6 {[%clk 0:02:58]} 2. e4 {[%clk 0:02:59]}  Bb7 {[%clk 0:02:46]} 3. Nc3 {[%clk 0:02:59]}  e6 {[%clk 0:02:21]} 4. g3 {[%clk 0:02:29]}  Bb4 {[%clk 0:02:14]} 5. Nge2 {[%clk 0:02:23]}  Ne7 {[%clk 0:02:09]} 6. Bg2 {[%clk 0:02:21]}  O-O {[%clk 0:02:08]} 7. O-O {[%clk 0:02:21]}  f5 {[%clk 0:02:07]} 8. d3 {[%clk 0:02:17]}  Bxc3 {[%clk 0:02:02]} 9. Nxc3 {[%clk 0:02:17]}  Nbc6 {[%clk 0:01:48]} 10. Be3 {[%clk 0:02:15]}  h6 {[%clk 0:01:37]} 11. h3 {[%clk 0:02:08]}  e5 {[%clk 0:01:33]} 12. f4 {[%clk 0:02:04]}  exf4 {[%clk 0:01:32]} 13. gxf4 {[%clk 0:01:43]}  d6 {[%clk 0:01:27]} 14. Kh2 {[%clk 0:01:40]}  Qd7 {[%clk 0:01:21]} 15. Qh5 {[%clk 0:01:29]}  Qe8 {[%clk 0:01:18]} 16. Qxe8 {[%clk 0:01:20]}  Raxe8 {[%clk 0:01:17]} 17. a3 {[%clk 0:01:17]}  fxe4 {[%clk 0:01:17]} 18. dxe4 {[%clk 0:01:17]}  Nf5 {[%clk 0:01:17]} 19. Bf2 {[%clk 0:01:11]}  Nfd4 {[%clk 0:01:17]} 20. Nd5 {[%clk 0:01:00]}  Rf7 {[%clk 0:01:14]} 21. b4 {[%clk 0:00:56]}  Ne6 {[%clk 0:01:07]} 22. Bg3 {[%clk 0:00:47]}  Ncd4 {[%clk 0:01:04]} 23. Ra2 {[%clk 0:00:40]}  Ref8 {[%clk 0:01:01]} 24. Rd1 {[%clk 0:00:34]}  c5 {[%clk 0:00:42]} 25. f5 {[%clk 0:00:30]}  Ng5 {[%clk 0:00:42]} 26. Bxd6 {[%clk 0:00:30]}  Re8 {[%clk 0:00:37]} 27. bxc5 {[%clk 0:00:29]}  bxc5 {[%clk 0:00:37]} 28. Bxc5 {[%clk 0:00:29]}  Ndf3+ {[%clk 0:00:37]} 29. Bxf3 {[%clk 0:00:24]}  Nxf3+ {[%clk 0:00:38]} 30. Kg2 {[%clk 0:00:19]}  Rxe4 {[%clk 0:00:36]} 31. Kxf3 {[%clk 0:00:05]}  Rxc4 {[%clk 0:00:36]} 32. Bxa7 {[%clk 0:00:04]}  Rxf5+ {[%clk 0:00:35]} 33. Ke3 {[%clk 0:00:05]}  Bxd5 {[%clk 0:00:34]} 34. Rf2 {[%clk 0:00:04]}  Rh5 {[%clk 0:00:22]} 35. Kd2 {[%clk 0:00:04]}  Rxh3 {[%clk 0:00:20]} 36. Rg1 {[%clk 0:00:05]}  Rcc3 {[%clk 0:00:16]} 37. Bd4 {[%clk 0:00:05]}  Rcd3+ {[%clk 0:00:17]} 38. Kc2 {[%clk 0:00:05]}  Rxd4 {[%clk 0:00:17]} 39. Kb2 {[%clk 0:00:05]}  Rc4 {[%clk 0:00:15]} 40. Rd2 {[%clk 0:00:04]}  Be6 {[%clk 0:00:14]} 41. Rd6 {[%clk 0:00:05]}  Bf5 {[%clk 0:00:13]} 42. Rd8+ {[%clk 0:00:05]}  Kh7 {[%clk 0:00:13]} 43. Rf8 {[%clk 0:00:05]}  Rc2+ {[%clk 0:00:13]} 44. Kb1 {[%clk 0:00:05]}  Rg2+ {[%clk 0:00:12]} 45. Rxf5 {[%clk 0:00:05]}  Rxg1+ {[%clk 0:00:12]} 46. Kc2 {[%clk 0:00:06]}  Rg2+ {[%clk 0:00:12]} 0-1


[Site "https://www.chess.com"]

[Event "Titled Tuesday Blitz July 20 2021"]
[White "Wilson, Elvin"]
[Black "Vyatkin, Dmitry"]
[WhiteFideId "2014874"]
[BlackFideId "4171900"]
[WhiteElo "2344"]
[BlackElo "2279"]
[Result "1/2-1/2"]
[Round "10"]
[TimeControl "180+1"]
[Date "2021.07.21"]
[WhiteClock "0:01:24"]
[BlackClock "0:01:18"]

1. c4 {[%clk 0:03:00]}  c5 {[%clk 0:02:55]} 2. g3 {[%clk 0:02:59]}  Nc6 {[%clk 0:02:55]} 3. Bg2 {[%clk 0:02:59]}  g6 {[%clk 0:02:55]} 4. Nc3 {[%clk 0:03:00]}  Bg7 {[%clk 0:02:56]} 5. e4 {[%clk 0:03:00]}  e6 {[%clk 0:02:50]} 6. Nge2 {[%clk 0:03:01]}  Nge7 {[%clk 0:02:51]} 7. O-O {[%clk 0:03:01]}  O-O {[%clk 0:02:51]} 8. d3 {[%clk 0:03:01]}  d6 {[%clk 0:02:52]} 9. Be3 {[%clk 0:02:56]}  Nd4 {[%clk 0:02:52]} 10. Rb1 {[%clk 0:02:55]}  Nec6 {[%clk 0:02:47]} 11. a3 {[%clk 0:02:40]}  a5 {[%clk 0:02:21]} 12. h3 {[%clk 0:02:25]}  Rb8 {[%clk 0:02:18]} 13. Kh2 {[%clk 0:02:23]}  Bd7 {[%clk 0:02:19]} 14. f4 {[%clk 0:02:04]}  b5 {[%clk 0:02:18]} 15. cxb5 {[%clk 0:02:02]}  Nxb5 {[%clk 0:02:18]} 16. Nxb5 {[%clk 0:02:02]}  Rxb5 {[%clk 0:02:18]} 17. d4 {[%clk 0:02:03]}  cxd4 {[%clk 0:02:13]} 18. Nxd4 {[%clk 0:02:02]}  Nxd4 {[%clk 0:02:14]} 19. Bxd4 {[%clk 0:02:03]}  Bxd4 {[%clk 0:02:14]} 20. Qxd4 {[%clk 0:02:02]}  Qb6 {[%clk 0:02:15]} 21. Rfd1 {[%clk 0:01:55]}  Qxd4 {[%clk 0:02:07]} 22. Rxd4 {[%clk 0:01:54]}  Rb6 {[%clk 0:02:08]} 23. b4 {[%clk 0:01:47]}  Rfb8 {[%clk 0:02:07]} 24. Rbd1 {[%clk 0:01:36]}  axb4 {[%clk 0:02:05]} 25. axb4 {[%clk 0:01:35]}  Rxb4 {[%clk 0:02:03]} 26. Rxd6 {[%clk 0:01:34]}  Ba4 {[%clk 0:02:02]} 27. Rd8+ {[%clk 0:01:31]}  Kg7 {[%clk 0:01:56]} 28. Rxb8 {[%clk 0:01:28]}  Rxb8 {[%clk 0:01:56]} 29. Rd4 {[%clk 0:01:28]}  Bc6 {[%clk 0:01:53]} 30. Rc4 {[%clk 0:01:27]}  Ba8 {[%clk 0:01:50]} 31. Rc2 {[%clk 0:01:26]}  h5 {[%clk 0:01:22]} 32. e5 {[%clk 0:01:25]}  Bxg2 {[%clk 0:01:22]} 33. Kxg2 {[%clk 0:01:25]}  Rb3 {[%clk 0:01:20]} 34. h4 {[%clk 0:01:25]}  Ra3 {[%clk 0:01:18]} 35. Rd2 {[%clk 0:01:25]}  Rb3 {[%clk 0:01:18]} 36. Rc2 {[%clk 0:01:24]} 1/2-1/2


[Site "https://www.chess.com"]